[Event "*** Titled Tuesday Blitz"]
[Site "Chess.com"]
[Date "2020.04.14"]
[Round "9"]
[White "EndgameGrinder"]
[Black "Bambi2006"]
[Result "0-1"]
[WhiteElo "2686"]
[BlackElo "2479"]
[TimeControl "180+1"]
[EndTime "11:42:30 PDT"]
[Termination "Bambi2006 won by resignation"]

1. d4 {[%clk 0:03:00.9]} 1... Nf6 {[%clk 0:02:59.9]} 2. Nf3 {[%clk 0:03:01.4]}
2... e6 {[%clk 0:03:00.3]} 3. Bg5 {[%clk 0:03:00.6]} 3... Be7 {[%clk 0:02:52.7]}
4. Nbd2 {[%clk 0:03:00.4]} 4... b6 {[%clk 0:02:49.4]} 5. e4 {[%clk 0:02:59.9]}
5... h6 {[%clk 0:02:45.4]} 6. Bh4 {[%clk 0:02:57.4]} 6... Bb7 {[%clk 0:02:43.5]}
7. Bd3 {[%clk 0:02:56.5]} 7... d6 {[%clk 0:02:40]} 8. Qe2 {[%clk 0:02:55.9]}
8... O-O {[%clk 0:02:35.3]} 9. O-O-O {[%clk 0:02:54.8]} 9... c5 {[%clk
0:02:33.2]} 10. Rhg1 {[%clk 0:02:44.8]} 10... Nbd7 {[%clk 0:02:27.5]} 11. g4
{[%clk 0:02:38.5]} 11... cxd4 {[%clk 0:02:27.8]} 12. Nxd4 {[%clk 0:02:26.8]}
12... Nc5 {[%clk 0:02:28]} 13. g5 {[%clk 0:02:23.7]} 13... Nxd3+ {[%clk
0:02:27.3]} 14. Qxd3 {[%clk 0:02:19]} 14... Nh5 {[%clk 0:02:24.6]} 15. Qf3
{[%clk 0:01:36.1]} 15... g6 {[%clk 0:02:24]} 16. gxh6 {[%clk 0:01:27]} 16...
Bxh4 {[%clk 0:02:17.1]} 17. Qxh5 {[%clk 0:01:27]} 17... Qe7 {[%clk 0:02:06.8]}
18. Qe2 {[%clk 0:00:52.6]} 18... Kh7 {[%clk 0:02:02.5]} 19. f4 {[%clk
0:00:49.3]} 19... e5 {[%clk 0:02:00.5]} 20. fxe5 {[%clk 0:00:43.6]} 20... dxe5
{[%clk 0:01:58.1]} 21. N4f3 {[%clk 0:00:43.8]} 21... Rad8 {[%clk 0:01:54.7]} 22.
Kb1 {[%clk 0:00:40.6]} 22... Bc8 {[%clk 0:01:49.9]} 23. Nc4 {[%clk 0:00:38]}
23... Ba6 {[%clk 0:01:46.7]} 24. b3 {[%clk 0:00:32.4]} 24... Bf6 {[%clk
0:01:43.1]} 25. Nfd2 {[%clk 0:00:30.6]} 25... Kxh6 {[%clk 0:01:38.5]} 26. Qf3
{[%clk 0:00:28.4]} 26... Bxc4 {[%clk 0:01:36]} 27. Nxc4 {[%clk 0:00:29.3]} 27...
Rxd1+ {[%clk 0:01:32.4]} 28. Rxd1 {[%clk 0:00:29.4]} 28... Bg5 {[%clk
0:01:30.6]} 29. Rd5 {[%clk 0:00:24.2]} 29... Bf4 {[%clk 0:01:28.5]} 30. a4
{[%clk 0:00:22.5]} 30... Kg7 {[%clk 0:01:26.4]} 31. Qd3 {[%clk 0:00:21.2]} 31...
Bxh2 {[%clk 0:01:22.9]} 32. Rd7 {[%clk 0:00:21.5]} 32... Qg5 {[%clk 0:01:19.4]}
33. Rxa7 {[%clk 0:00:21.5]} 33... b5 {[%clk 0:01:12.5]} 34. Ne3 {[%clk
0:00:14.2]} 34... Bg1 {[%clk 0:01:06.4]} 35. axb5 {[%clk 0:00:09.2]} 35... Qxe3
{[%clk 0:00:58.1]} 36. Qxe3 {[%clk 0:00:09.5]} 36... Bxe3 {[%clk 0:00:59]} 37.
Rd7 {[%clk 0:00:09.2]} 37... Bd4 {[%clk 0:00:54.6]} 38. c4 {[%clk 0:00:09.4]}
38... g5 {[%clk 0:00:52.2]} 39. b4 {[%clk 0:00:08.9]} 39... g4 {[%clk
0:00:50.5]} 40. b6 {[%clk 0:00:06.9]} 40... g3 {[%clk 0:00:48]} 41. Ra7 {[%clk
0:00:06.8]} 41... Bxb6 {[%clk 0:00:45.3]} 42. Ra2 {[%clk 0:00:06.2]} 42... Bf2
{[%clk 0:00:42.1]} 0-1

[Event "*** Titled Tuesday Blitz"]
[Site "Chess.com"]
[Date "2020.04.14"]
[Round "9"]
[White "mphofmann"]
[Black "ChesterF"]
[Result "0-1"]
[WhiteElo "2284"]
[BlackElo "2505"]
[TimeControl "180+1"]
[EndTime "11:42:30 PDT"]
[Termination "ChesterF won on time"]

1. b3 {[%clk 0:03:00.9]} 1... d5 {[%clk 0:02:55]} 2. Bb2 {[%clk 0:03:00.6]} 2...
Bf5 {[%clk 0:02:55]} 3. e3 {[%clk 0:02:59.2]} 3... e6 {[%clk 0:02:55.3]} 4. h3
{[%clk 0:02:51.8]} 4... Nf6 {[%clk 0:02:54.5]} 5. d3 {[%clk 0:02:51.9]} 5... h6
{[%clk 0:02:51.9]} 6. g4 {[%clk 0:02:51.9]} 6... Bh7 {[%clk 0:02:51.3]} 7. Bg2
{[%clk 0:02:51.9]} 7... Bd6 {[%clk 0:02:51.1]} 8. Nf3 {[%clk 0:02:50.8]} 8...
Nbd7 {[%clk 0:02:48.8]} 9. Nbd2 {[%clk 0:02:51.1]} 9... e5 {[%clk 0:02:48.2]}
10. Qe2 {[%clk 0:02:30.2]} 10... Qe7 {[%clk 0:02:47.1]} 11. g5 {[%clk
0:02:09.9]} 11... hxg5 {[%clk 0:02:45.5]} 12. Nxg5 {[%clk 0:02:10.8]} 12... Bg6
{[%clk 0:02:45.6]} 13. e4 {[%clk 0:02:08.9]} 13... Nh5 {[%clk 0:02:36.5]} 14. h4
{[%clk 0:01:40]} 14... Nf4 {[%clk 0:02:34.1]} 15. Qf3 {[%clk 0:01:36.8]} 15...
d4 {[%clk 0:02:14.4]} 16. Qg3 {[%clk 0:01:12.1]} 16... O-O-O {[%clk 0:01:57.9]}
17. Bf3 {[%clk 0:01:07.4]} 17... Kb8 {[%clk 0:01:55.9]} 18. O-O-O {[%clk
0:01:05.9]} 18... Bh5 {[%clk 0:01:40.7]} 19. Kb1 {[%clk 0:01:01.5]} 19... Bxf3
{[%clk 0:01:35.4]} 20. Ndxf3 {[%clk 0:00:58.8]} 20... f6 {[%clk 0:01:26.2]} 21.
Nh3 {[%clk 0:00:58.6]} 21... Ne2 {[%clk 0:01:21.2]} 22. Qg4 {[%clk 0:00:56.3]}
22... Nc3+ {[%clk 0:01:16.1]} 23. Ka1 {[%clk 0:00:37.6]} 23... Ba3 {[%clk
0:01:15.3]} 24. Nd2 {[%clk 0:00:32.5]} 24... Bxb2+ {[%clk 0:01:00.6]} 25. Kxb2
{[%clk 0:00:33.4]} 25... Nb6 {[%clk 0:00:57.4]} 26. Rdg1 {[%clk 0:00:24.8]}
26... Rhg8 {[%clk 0:00:55.8]} 27. a3 {[%clk 0:00:23.6]} 27... Qc5 {[%clk
0:00:53.6]} 28. Nb1 {[%clk 0:00:22.3]} 28... a5 {[%clk 0:00:50.1]} 29. f4 {[%clk
0:00:17]} 29... a4 {[%clk 0:00:45.6]} 30. b4 {[%clk 0:00:12.8]} 30... Qb5 {[%clk
0:00:44.3]} 31. Nxc3 {[%clk 0:00:09.4]} 31... dxc3+ {[%clk 0:00:43.3]} 32. Ka2
{[%clk 0:00:03.1]} 32... c5 {[%clk 0:00:43.4]} 33. Rb1 {[%clk 0:00:02.9]} 33...
c4 {[%clk 0:00:41.3]} 0-1

[Event "*** Titled Tuesday Blitz"]
[Site "Chess.com"]
[Date "2020.04.14"]
[Round "9"]
[White "DanielRensch"]
[Black "JMatias"]
[Result "1-0"]
[WhiteElo "2542"]
[BlackElo "2372"]
[TimeControl "180+1"]
[EndTime "11:42:32 PDT"]
[Termination "DanielRensch won by resignation"]

1. e4 {[%clk 0:02:50.8]} 1... d6 {[%clk 0:02:59.8]} 2. d4 {[%clk 0:02:49.5]}
2... g6 {[%clk 0:03:00.1]} 3. Nc3 {[%clk 0:02:49.1]} 3... Bg7 {[%clk 0:02:59.9]}
4. Bg5 {[%clk 0:02:49]} 4... Nd7 {[%clk 0:02:55.2]} 5. Qd2 {[%clk 0:02:47.9]}
5... c6 {[%clk 0:02:55.5]} 6. f4 {[%clk 0:02:47.7]} 6... b5 {[%clk 0:02:45.5]}
7. Nf3 {[%clk 0:02:45.8]} 7... Qb6 {[%clk 0:02:44.8]} 8. e5 {[%clk 0:02:39.8]}
8... f6 {[%clk 0:02:31.1]} 9. Bh4 {[%clk 0:02:31.3]} 9... Nh6 {[%clk 0:02:27.2]}
10. exd6 {[%clk 0:02:20.9]} 10... exd6 {[%clk 0:02:28.1]} 11. Ne4 {[%clk
0:02:19.3]} 11... Nf5 {[%clk 0:02:12.7]} 12. Bf2 {[%clk 0:02:19]} 12... Qc7
{[%clk 0:02:11.8]} 13. d5 {[%clk 0:02:10.4]} 13... cxd5 {[%clk 0:02:01.1]} 14.
Nc3 {[%clk 0:01:52.5]} 14... Nb6 {[%clk 0:01:53.7]} 15. Bxb5+ {[%clk 0:01:50.1]}
15... Kf7 {[%clk 0:01:49.3]} 16. O-O {[%clk 0:01:48.6]} 16... Bb7 {[%clk
0:01:47.8]} 17. Nd4 {[%clk 0:01:38.2]} 17... Nxd4 {[%clk 0:01:44.6]} 18. Bxd4
{[%clk 0:01:37.5]} 18... Nc4 {[%clk 0:01:35.4]} 19. Qf2 {[%clk 0:01:16.3]} 19...
a6 {[%clk 0:01:33.9]} 20. Ba4 {[%clk 0:01:10.9]} 20... Nxb2 {[%clk 0:01:31.4]}
21. Bb3 {[%clk 0:01:10]} 21... Nc4 {[%clk 0:01:31.6]} 22. f5 {[%clk 0:01:10.2]}
22... g5 {[%clk 0:01:31.2]} 23. Qf3 {[%clk 0:01:09.5]} 23... Qc6 {[%clk
0:01:24.7]} 24. Qh5+ {[%clk 0:01:08.8]} 24... Kf8 {[%clk 0:01:16.9]} 25. Rfe1
{[%clk 0:01:08.2]} 25... Qc7 {[%clk 0:01:05.7]} 26. Re6 {[%clk 0:01:01.9]} 26...
Qf7 {[%clk 0:01:04.9]} 27. Qe2 {[%clk 0:00:43.8]} 27... Ne5 {[%clk 0:00:55.3]}
28. Nxd5 {[%clk 0:00:39.6]} 28... Rd8 {[%clk 0:00:48.3]} 29. Re7 {[%clk
0:00:29.1]} 29... Bxd5 {[%clk 0:00:40.8]} 30. Rxf7+ {[%clk 0:00:28.3]} 30...
Bxf7 {[%clk 0:00:40.9]} 31. Bxe5 {[%clk 0:00:28.2]} 31... dxe5 {[%clk
0:00:39.5]} 32. Qxa6 {[%clk 0:00:26.9]} 32... g4 {[%clk 0:00:20.3]} 33. Bxf7
{[%clk 0:00:25.6]} 33... Kxf7 {[%clk 0:00:20.8]} 34. Qe6+ {[%clk 0:00:25.6]}
34... Kf8 {[%clk 0:00:20.6]} 35. Rb1 {[%clk 0:00:26.5]} 35... Re8 {[%clk
0:00:18.3]} 36. Qd6+ {[%clk 0:00:25.8]} 36... Kg8 {[%clk 0:00:18]} 37. Rb7
{[%clk 0:00:24.3]} 37... h5 {[%clk 0:00:17.8]} 38. Qd7 {[%clk 0:00:20.1]} 1-0

[Event "*** Titled Tuesday Blitz"]
[Site "Chess.com"]
[Date "2020.04.14"]
[Round "9"]
[White "Vesper2018"]
[Black "Gareth-Bale11"]
[Result "1-0"]
[WhiteElo "1909"]
[BlackElo "2758"]
[TimeControl "180+1"]
[EndTime "11:42:34 PDT"]
[Termination "Vesper2018 won by resignation"]

1. e4 {[%clk 0:02:59.4]} 1... c5 {[%clk 0:02:57.2]} 2. Nf3 {[%clk 0:02:59.4]}
2... Nc6 {[%clk 0:02:51.9]} 3. d4 {[%clk 0:02:59.3]} 3... cxd4 {[%clk
0:02:51.2]} 4. Nxd4 {[%clk 0:02:59.2]} 4... e5 {[%clk 0:02:48]} 5. Nb5 {[%clk
0:02:58.5]} 5... d6 {[%clk 0:02:46.3]} 6. N1c3 {[%clk 0:02:56.7]} 6... a6 {[%clk
0:02:44.8]} 7. Na3 {[%clk 0:02:57]} 7... b5 {[%clk 0:02:45.1]} 8. Nd5 {[%clk
0:02:56.8]} 8... Nf6 {[%clk 0:02:44.1]} 9. Bd3 {[%clk 0:02:49.9]} 9... Nxd5
{[%clk 0:02:36.7]} 10. exd5 {[%clk 0:02:48.7]} 10... Nd4 {[%clk 0:02:29.7]} 11.
c3 {[%clk 0:02:43.5]} 11... Nf5 {[%clk 0:02:28.5]} 12. O-O {[%clk 0:02:42.8]}
12... h5 {[%clk 0:02:28.1]} 13. c4 {[%clk 0:02:28.6]} 13... g6 {[%clk
0:02:17.3]} 14. cxb5 {[%clk 0:02:27.3]} 14... Bg7 {[%clk 0:02:16.7]} 15. bxa6
{[%clk 0:02:23.2]} 15... O-O {[%clk 0:02:14.4]} 16. Nb5 {[%clk 0:02:21.5]} 16...
Bxa6 {[%clk 0:02:11.8]} 17. a4 {[%clk 0:02:21.4]} 17... Re8 {[%clk 0:02:01.6]}
18. Bxf5 {[%clk 0:02:11.4]} 18... Bxb5 {[%clk 0:01:59]} 19. Bd3 {[%clk
0:02:10.9]} 19... Bd7 {[%clk 0:01:58]} 20. Qb3 {[%clk 0:01:54.5]} 20... e4
{[%clk 0:01:52.9]} 21. Bb5 {[%clk 0:01:54]} 21... Bxb5 {[%clk 0:01:48]} 22. Qxb5
{[%clk 0:01:53]} 22... Be5 {[%clk 0:01:41]} 23. Qe2 {[%clk 0:01:40.2]} 23... Qd7
{[%clk 0:01:27.2]} 24. a5 {[%clk 0:01:36.9]} 24... Reb8 {[%clk 0:01:23.7]} 25.
Ra2 {[%clk 0:01:36]} 25... Qb5 {[%clk 0:01:14.7]} 26. Qxb5 {[%clk 0:01:08.6]}
26... Rxb5 {[%clk 0:01:11.7]} 27. a6 {[%clk 0:01:08.6]} 27... Rxd5 {[%clk
0:00:59.9]} 28. Be3 {[%clk 0:01:08]} 28... Rb5 {[%clk 0:00:59.1]} 29. a7 {[%clk
0:00:58.3]} 29... d5 {[%clk 0:00:57.5]} 30. Rd1 {[%clk 0:00:58.4]} 30... Kg7
{[%clk 0:00:55.5]} 31. g3 {[%clk 0:00:57.1]} 31... h4 {[%clk 0:00:46.6]} 32. Kg2
{[%clk 0:00:52.4]} 32... Kf6 {[%clk 0:00:45.3]} 33. b4 {[%clk 0:00:45.3]} 33...
Ke6 {[%clk 0:00:38.8]} 34. Ra6+ {[%clk 0:00:41.4]} 34... Kd7 {[%clk 0:00:27.5]}
35. Bc5 {[%clk 0:00:39.3]} 35... d4 {[%clk 0:00:27]} 36. Bxd4 {[%clk 0:00:33.8]}
36... Bxd4 {[%clk 0:00:21.7]} 37. Rxd4+ {[%clk 0:00:33.8]} 37... Kc7 {[%clk
0:00:22.6]} 38. Rxe4 {[%clk 0:00:33.3]} 38... hxg3 {[%clk 0:00:23.5]} 39. Re7+
{[%clk 0:00:30.5]} 39... Kd8 {[%clk 0:00:23.6]} 40. Rxf7 {[%clk 0:00:30.9]}
40... Rf5 {[%clk 0:00:21.7]} 41. Rxf5 {[%clk 0:00:29.5]} 41... gxf5 {[%clk
0:00:22.6]} 42. Rh6 {[%clk 0:00:29.2]} 1-0

[Event "*** Titled Tuesday Blitz"]
[Site "Chess.com"]
[Date "2020.04.14"]
[Round "9"]
[White "davigator"]
[Black "HElissalt"]
[Result "1-0"]
[WhiteElo "2349"]
[BlackElo "2162"]
[TimeControl "180+1"]
[EndTime "11:42:35 PDT"]
[Termination "davigator won on time"]

1. e4 {[%clk 0:03:00.9]} 1... d6 {[%clk 0:03:00.9]} 2. d4 {[%clk 0:02:56.6]}
2... Nf6 {[%clk 0:03:01.8]} 3. Nc3 {[%clk 0:02:54.5]} 3... e5 {[%clk 0:03:01.3]}
4. Nf3 {[%clk 0:02:54.3]} 4... Nbd7 {[%clk 0:03:00.2]} 5. Bc4 {[%clk 0:02:54.2]}
5... Be7 {[%clk 0:02:57.6]} 6. O-O {[%clk 0:02:53.8]} 6... O-O {[%clk
0:02:56.1]} 7. Re1 {[%clk 0:02:52.3]} 7... c6 {[%clk 0:02:47.6]} 8. a4 {[%clk
0:02:50.5]} 8... b6 {[%clk 0:02:42.9]} 9. Bg5 {[%clk 0:02:48.2]} 9... a6 {[%clk
0:02:38.2]} 10. h3 {[%clk 0:02:47.2]} 10... Qc7 {[%clk 0:02:37.3]} 11. Qd2
{[%clk 0:02:38.3]} 11... Rb8 {[%clk 0:02:35.7]} 12. Bf1 {[%clk 0:02:36.7]} 12...
b5 {[%clk 0:02:21.9]} 13. a5 {[%clk 0:02:19.8]} 13... b4 {[%clk 0:02:04.2]} 14.
Nd1 {[%clk 0:02:18.1]} 14... Re8 {[%clk 0:01:47.4]} 15. b3 {[%clk 0:02:16.6]}
15... Bf8 {[%clk 0:01:43.4]} 16. Bd3 {[%clk 0:02:14.8]} 16... d5 {[%clk
0:01:22.5]} 17. exd5 {[%clk 0:01:29.4]} 17... e4 {[%clk 0:01:16]} 18. dxc6
{[%clk 0:01:27.3]} 18... Qxc6 {[%clk 0:01:14.4]} 19. Ne5 {[%clk 0:01:19.5]}
19... Nxe5 {[%clk 0:01:04.3]} 20. dxe5 {[%clk 0:01:19.3]} 20... Rxe5 {[%clk
0:00:57.2]} 21. Bc4 {[%clk 0:01:11.2]} 21... Bb7 {[%clk 0:00:52.8]} 22. Bf4
{[%clk 0:01:02.7]} 22... e3 {[%clk 0:00:49.4]} 23. Nxe3 {[%clk 0:01:02.9]} 23...
Rxe3 {[%clk 0:00:46.2]} 24. fxe3 {[%clk 0:01:02.7]} 24... Rd8 {[%clk 0:00:43.2]}
25. Qe2 {[%clk 0:01:02.8]} 25... Ne4 {[%clk 0:00:42.6]} 26. Qf3 {[%clk
0:00:45.2]} 26... Qg6 {[%clk 0:00:38.8]} 27. Qg4 {[%clk 0:00:42.2]} 27... Qf6
{[%clk 0:00:35.4]} 28. Rf1 {[%clk 0:00:40.5]} 28... Nd2 {[%clk 0:00:25.8]} 29.
Bg5 {[%clk 0:00:39.7]} 29... Qe5 {[%clk 0:00:19.7]} 30. Bxf7+ {[%clk 0:00:37.9]}
30... Kh8 {[%clk 0:00:18.1]} 31. Bxd8 {[%clk 0:00:38.4]} 31... Qxe3+ {[%clk
0:00:14.4]} 32. Kh1 {[%clk 0:00:34.4]} 32... Ne4 {[%clk 0:00:11.9]} 33. Bc7
{[%clk 0:00:28.5]} 33... Nf2+ {[%clk 0:00:01.7]} 34. Rxf2 {[%clk 0:00:28.3]}
34... Qxf2 {[%clk 0:00:01.7]} 35. Bc4 {[%clk 0:00:28.2]} 1-0

[Event "*** Titled Tuesday Blitz"]
[Site "Chess.com"]
[Date "2020.04.14"]
[Round "9"]
[White "Skatchkov_V"]
[Black "SGchess01"]
[Result "1-0"]
[WhiteElo "2571"]
[BlackElo "2680"]
[TimeControl "180+1"]
[EndTime "11:42:37 PDT"]
[Termination "Skatchkov_V won by resignation"]

1. d4 {[%clk 0:03:00.3]} 1... a6 {[%clk 0:03:00.3]} 2. c4 {[%clk 0:02:59.4]}
2... b5 {[%clk 0:03:00]} 3. b3 {[%clk 0:02:54.8]} 3... bxc4 {[%clk 0:02:59.7]}
4. bxc4 {[%clk 0:02:55.3]} 4... g6 {[%clk 0:03:00.6]} 5. Nf3 {[%clk 0:02:55.5]}
5... Bg7 {[%clk 0:03:01]} 6. Nc3 {[%clk 0:02:53.9]} 6... c5 {[%clk 0:02:59.9]}
7. e3 {[%clk 0:02:52.3]} 7... Nf6 {[%clk 0:02:59]} 8. Be2 {[%clk 0:02:47.9]}
8... O-O {[%clk 0:02:58.8]} 9. O-O {[%clk 0:02:48.2]} 9... Nc6 {[%clk
0:02:59.1]} 10. d5 {[%clk 0:02:46.9]} 10... Na5 {[%clk 0:02:58]} 11. Qc2 {[%clk
0:02:45]} 11... d6 {[%clk 0:02:57.8]} 12. Rb1 {[%clk 0:02:39.4]} 12... e6 {[%clk
0:02:51.5]} 13. Bd2 {[%clk 0:02:33.5]} 13... exd5 {[%clk 0:02:50.1]} 14. cxd5
{[%clk 0:02:33.2]} 14... Re8 {[%clk 0:02:48.2]} 15. Na4 {[%clk 0:02:19.7]} 15...
Bf5 {[%clk 0:02:45.9]} 16. Qc3 {[%clk 0:02:17.2]} 16... Bxb1 {[%clk 0:02:43.4]}
17. Rxb1 {[%clk 0:02:16.9]} 17... Rb8 {[%clk 0:02:35.6]} 18. Rxb8 {[%clk
0:02:13.6]} 18... Qxb8 {[%clk 0:02:36.5]} 19. Qxa5 {[%clk 0:02:13]} 19... Qb1+
{[%clk 0:02:35.3]} 20. Be1 {[%clk 0:01:53.6]} 20... Qxa2 {[%clk 0:02:33.7]} 21.
Qxa6 {[%clk 0:01:49.6]} 21... Nxd5 {[%clk 0:02:30.1]} 22. Nxc5 {[%clk
0:01:39.9]} 22... Qxa6 {[%clk 0:01:49.8]} 23. Nxa6 {[%clk 0:01:39.6]} 23... Rc8
{[%clk 0:01:50.3]} 24. Nb4 {[%clk 0:01:31]} 24... Nxb4 {[%clk 0:01:46.4]} 25.
Bxb4 {[%clk 0:01:30.8]} 25... Rc1+ {[%clk 0:01:47.3]} 26. Bf1 {[%clk 0:01:30.7]}
26... d5 {[%clk 0:01:47]} 27. g3 {[%clk 0:01:28.7]} 27... Bf6 {[%clk 0:01:45.9]}
28. Kg2 {[%clk 0:01:25.9]} 28... Rb1 {[%clk 0:01:46.4]} 29. Bc5 {[%clk
0:01:25.8]} 29... Kg7 {[%clk 0:01:43.1]} 30. Ba6 {[%clk 0:01:22.3]} 30... Rc1
{[%clk 0:01:42.2]} 31. Bd4 {[%clk 0:01:03.7]} 31... Bxd4 {[%clk 0:01:41.8]} 32.
Nxd4 {[%clk 0:01:03.4]} 32... Kf6 {[%clk 0:01:42.7]} 33. Bb7 {[%clk 0:01:02.9]}
33... Ke5 {[%clk 0:01:41.5]} 34. Nf3+ {[%clk 0:00:58.6]} 34... Kd6 {[%clk
0:01:41.1]} 35. Ng5 {[%clk 0:00:58.2]} 35... f6 {[%clk 0:01:38.2]} 36. Nf3
{[%clk 0:00:55.2]} 36... Rc2 {[%clk 0:01:35.8]} 37. Nd4 {[%clk 0:00:54.7]} 37...
Rb2 {[%clk 0:01:35.8]} 38. Ba6 {[%clk 0:00:53.2]} 38... Ra2 {[%clk 0:01:36.2]}
39. Be2 {[%clk 0:00:52.2]} 39... Rb2 {[%clk 0:01:35.9]} 40. h4 {[%clk
0:00:52.3]} 40... Kc5 {[%clk 0:01:32.9]} 41. Bg4 {[%clk 0:00:52]} 41... Kd6
{[%clk 0:01:28.5]} 42. h5 {[%clk 0:00:49]} 42... f5 {[%clk 0:01:25.1]} 43. Bf3
{[%clk 0:00:44.4]} 43... Ra2 {[%clk 0:01:25.3]} 44. Be2 {[%clk 0:00:42.7]} 44...
Ke5 {[%clk 0:01:23.9]} 45. Kh3 {[%clk 0:00:41.3]} 45... g5 {[%clk 0:01:21.8]}
46. Kg2 {[%clk 0:00:27.9]} 46... g4 {[%clk 0:01:20.7]} 47. Bb5 {[%clk
0:00:26.1]} 47... Ra7 {[%clk 0:01:12.1]} 48. Nc6+ {[%clk 0:00:25.5]} 1-0

[Event "*** Titled Tuesday Blitz"]
[Site "Chess.com"]
[Date "2020.04.14"]
[Round "9"]
[White "bracuarta"]
[Black "Chichin_chao"]
[Result "0-1"]
[WhiteElo "2192"]
[BlackElo "2348"]
[TimeControl "180+1"]
[EndTime "11:42:37 PDT"]
[Termination "Chichin_chao won on time"]

1. d4 {[%clk 0:03:00.9]} 1... Nf6 {[%clk 0:02:59.9]} 2. c4 {[%clk 0:03:00.2]}
2... d6 {[%clk 0:03:00.3]} 3. Nc3 {[%clk 0:02:59.9]} 3... Nbd7 {[%clk
0:03:00.8]} 4. e4 {[%clk 0:03:00]} 4... e5 {[%clk 0:03:01.3]} 5. Nf3 {[%clk
0:03:00.2]} 5... Be7 {[%clk 0:03:01.2]} 6. Be2 {[%clk 0:02:59.1]} 6... O-O
{[%clk 0:03:01.3]} 7. h3 {[%clk 0:02:59.2]} 7... exd4 {[%clk 0:03:01.3]} 8. Nxd4
{[%clk 0:02:58.7]} 8... Re8 {[%clk 0:03:01.9]} 9. O-O {[%clk 0:02:57.7]} 9...
Bf8 {[%clk 0:03:01.8]} 10. Bf3 {[%clk 0:02:52.1]} 10... Nc5 {[%clk 0:02:55.7]}
11. Re1 {[%clk 0:02:51.8]} 11... Nfd7 {[%clk 0:02:55.5]} 12. b4 {[%clk
0:02:48.4]} 12... Ne6 {[%clk 0:02:55.1]} 13. Be3 {[%clk 0:02:38.5]} 13... Ng5
{[%clk 0:02:13.2]} 14. Bf4 {[%clk 0:02:23.9]} 14... Nxf3+ {[%clk 0:01:59.8]} 15.
Qxf3 {[%clk 0:02:23.5]} 15... c6 {[%clk 0:01:51.7]} 16. Rad1 {[%clk 0:02:21.8]}
16... Qf6 {[%clk 0:01:50.6]} 17. Qg3 {[%clk 0:02:16.9]} 17... Ne5 {[%clk
0:01:48.9]} 18. Bg5 {[%clk 0:02:07.7]} 18... Qg6 {[%clk 0:01:45.5]} 19. f4
{[%clk 0:01:54.5]} 19... Nxc4 {[%clk 0:01:39.1]} 20. f5 {[%clk 0:01:53.5]} 20...
Qh5 {[%clk 0:01:39.5]} 21. Nce2 {[%clk 0:01:45.2]} 21... f6 {[%clk 0:01:03.1]}
22. Bxf6 {[%clk 0:01:40.4]} 22... Rxe4 {[%clk 0:01:02.9]} 23. Nf4 {[%clk
0:01:32.7]} 23... Rxe1+ {[%clk 0:01:01.3]} 24. Rxe1 {[%clk 0:01:33.6]} 24... Qf7
{[%clk 0:01:01.8]} 25. Bh4 {[%clk 0:01:29.1]} 25... Bxf5 {[%clk 0:00:59]} 26.
Nf3 {[%clk 0:01:23.5]} 26... Re8 {[%clk 0:00:56.2]} 27. Ng5 {[%clk 0:01:21.8]}
27... Rxe1+ {[%clk 0:00:55.6]} 28. Qxe1 {[%clk 0:01:21.8]} 28... Qf6 {[%clk
0:00:52.7]} 29. Kh2 {[%clk 0:01:09.7]} 29... Qe5 {[%clk 0:00:52.2]} 30. Qf2
{[%clk 0:01:01.1]} 30... h6 {[%clk 0:00:52]} 31. Nf3 {[%clk 0:00:07.9]} 31...
Qxf4+ {[%clk 0:00:51.6]} 32. Bg3 {[%clk 0:00:08.8]} 32... Qe3 {[%clk 0:00:50.5]}
33. Qf1 {[%clk 0:00:07.4]} 33... Bd3 {[%clk 0:00:50.3]} 34. Qa1 {[%clk
0:00:05.9]} 34... Be4 {[%clk 0:00:36.2]} 0-1

[Event "*** Titled Tuesday Blitz"]
[Site "Chess.com"]
[Date "2020.04.14"]
[Round "9"]
[White "Usurpov"]
[Black "IAgrest"]
[Result "1/2-1/2"]
[WhiteElo "2419"]
[BlackElo "2286"]
[TimeControl "180+1"]
[EndTime "11:42:38 PDT"]
[Termination "Game drawn by repetition"]

1. e4 {[%clk 0:03:00.9]} 1... e5 {[%clk 0:02:59.6]} 2. Nf3 {[%clk 0:03:00.7]}
2... Nc6 {[%clk 0:02:59.9]} 3. Nc3 {[%clk 0:02:59.6]} 3... Nf6 {[%clk
0:02:59.7]} 4. d4 {[%clk 0:02:59.8]} 4... exd4 {[%clk 0:02:59.7]} 5. Nxd4 {[%clk
0:03:00.7]} 5... Bb4 {[%clk 0:02:59.8]} 6. Nxc6 {[%clk 0:03:00.8]} 6... bxc6
{[%clk 0:03:00.7]} 7. Bd3 {[%clk 0:03:01.1]} 7... O-O {[%clk 0:03:00.6]} 8. O-O
{[%clk 0:03:00]} 8... Re8 {[%clk 0:03:00.8]} 9. Qf3 {[%clk 0:02:56.7]} 9... Rb8
{[%clk 0:02:59.6]} 10. h3 {[%clk 0:02:53.8]} 10... h6 {[%clk 0:02:57]} 11. Bd2
{[%clk 0:02:42.2]} 11... Bd6 {[%clk 0:02:52]} 12. b3 {[%clk 0:02:37.8]} 12...
Be5 {[%clk 0:02:51.8]} 13. Rae1 {[%clk 0:02:36.6]} 13... d6 {[%clk 0:02:51.2]}
14. Ne2 {[%clk 0:02:28.9]} 14... c5 {[%clk 0:02:46.6]} 15. Ng3 {[%clk
0:02:19.2]} 15... c6 {[%clk 0:02:22.6]} 16. Nf5 {[%clk 0:02:09.1]} 16... Bxf5
{[%clk 0:02:18.4]} 17. Qxf5 {[%clk 0:02:09.5]} 17... Qd7 {[%clk 0:02:05.6]} 18.
Qxd7 {[%clk 0:02:04.6]} 18... Nxd7 {[%clk 0:02:06.5]} 19. g3 {[%clk 0:02:02.1]}
19... Re7 {[%clk 0:01:46.1]} 20. Kg2 {[%clk 0:01:55.1]} 20... Rbe8 {[%clk
0:01:37.8]} 21. Re2 {[%clk 0:01:34.9]} 21... Nf8 {[%clk 0:01:33.3]} 22. Rfe1
{[%clk 0:01:31.1]} 22... Ne6 {[%clk 0:01:28.5]} 23. f4 {[%clk 0:01:11.1]} 23...
Bf6 {[%clk 0:01:28.1]} 24. c3 {[%clk 0:01:10.4]} 24... Nc7 {[%clk 0:01:13.3]}
25. Kf3 {[%clk 0:01:06.2]} 25... g6 {[%clk 0:01:10.7]} 26. h4 {[%clk 0:01:04.7]}
26... Nb5 {[%clk 0:01:06]} 27. Rc1 {[%clk 0:01:01.1]} 27... a5 {[%clk
0:01:02.7]} 28. h5 {[%clk 0:00:47.1]} 28... Kg7 {[%clk 0:00:48]} 29. hxg6 {[%clk
0:00:40.6]} 29... fxg6 {[%clk 0:00:47.6]} 30. a4 {[%clk 0:00:31.5]} 30... Nc7
{[%clk 0:00:44.3]} 31. Rce1 {[%clk 0:00:27.3]} 31... h5 {[%clk 0:00:34.8]} 32.
Bc2 {[%clk 0:00:26.5]} 32... Ne6 {[%clk 0:00:24.3]} 33. Kg2 {[%clk 0:00:20.3]}
33... Nc7 {[%clk 0:00:23.2]} 34. Kf3 {[%clk 0:00:17.8]} 34... Ne6 {[%clk
0:00:23.2]} 35. Kg2 {[%clk 0:00:17.5]} 35... Nc7 {[%clk 0:00:23.2]} 36. Re3
{[%clk 0:00:16.7]} 36... Ne6 {[%clk 0:00:19.6]} 37. Kf3 {[%clk 0:00:16.4]} 37...
Nc7 {[%clk 0:00:19.6]} 38. R3e2 {[%clk 0:00:16.1]} 1/2-1/2